[Event "3rd Manaus Open 2024"]
[Site "Manaus"]
[Date "2024.10.14"]
[Round "4.2"]
[White "Quintiliano, Renato R."]
[Black "Molina, Roberto Junio Brito"]
[Result "0-1"]
[ECO "A17"]
[WhiteElo "2513"]
[BlackElo "2381"]
[Annotator "TA"]
[PlyCount "62"]
[EventDate "2024.10.05"]
[EventType "swiss"]
[EventCountry "BRA"]
[SourceTitle "playchess.com"]
[Source "ChessBase"]
[SourceQuality "1"]
[TimeControl "5400+30"]

{[%evp 9,62,15,13,9,0,0,0,0,0,0,0,-12,12,-2,-6,0,3,0,0,-21,-46,-30,0,0,0,0,0,0,79,0,0,0,0,-20,-15,-102,-95,-97,-81,-146,-135,-131,-69,-65,-68,-66,-82,-70,-78,-74,-49,-4933,-1790,-29991,-29992]} 1. Nf3 {[%emt 0:00:26]} d5 {[%emt 0:15:32]} 2. e3 {[%emt 0:00:09]} Nf6 {[%emt 0:01:57]} 3. c4 {[%emt 0:00:08]} e6 {[%emt 0:00:37]} 4. Nc3 {[%emt 0:00:29]} Be7 {[%emt 0:00:49]} 5. b3 {[%emt 0:00:29]} c5 {[%emt 0:04:34]} 6. Bb2 {[%emt 0:02:32]} dxc4 {[%emt 0:01:49]} 7. bxc4 {[%emt 0:00:35]} b6 {[%emt 0:00:44]} 8. Qc2 {[%emt 0:01:16] The position is equal.} Bb7 {[%emt 0:00:43]} 9. Be2 {[%emt 0:00:18]} Nc6 {[%emt 0:04:53]} 10. a3 {[%emt 0:00:41]} Qc7 {[%emt 0:02:44]} 11. h3 {[%emt 1:28:57]} Rd8 {[%emt 0:06:17]} 12. Rg1 {[%emt 0:00:00]} a6 {[%emt 0:00:49]} 13. g4 {[%emt 0:00:00]} h6 {[%emt 0:06:11][%cal Oc6d4]} 14. g5 {[%emt 0:00:00]} hxg5 {[%emt 0:02:54]} 15. Nxg5 {[%emt 0:00:00]} Bf8 {[%emt 0:02:37]} (15... Rh6 {seems wilder.} 16. Nce4 Na5 17. Rg3 e5) 16. f4 {[%emt 0:00:00]} Rd7 {[%emt 0:01:34]} 17. f5 {[%emt 0:00:00]} e5 {[%emt 0:10:01]} 18. O-O-O {[%emt 0:00:00]} Kd8 {[%emt 0:01:13] [#]} (18... Na5 $11) 19. Na4 {[%emt 0:00:00]} (19. Nd5 $1 $16 {[%cal Rd5c7]} Nxd5 20. cxd5) 19... Rh4 $11 {[%emt 0:05:15]} 20. Kb1 {[%emt 0:00:00]} Na5 {[%emt 0:10:45]} 21. Bc3 {[%emt 0:00:00] Hoping for Qb2.} Rxc4 {[%emt 0:10:57]} ({But not} 21... Nxc4 22. Bxc4 (22. Nxf7+ $2 Rxf7 23. Bxc4 Rxc4 $19) 22... Rxc4 23. Bxe5 Qxe5 24. Qxc4 Qxf5+ 25. Qc2 Qxc2+ 26. Kxc2 $15) (21... Nxc4 {is interesting.} 22. Bxc4 Rxc4 23. Bxe5 Qxe5 24. Qxc4 Qxf5+ 25. Qc2 Qxc2+ 26. Kxc2 b5) 22. Bxa5 {[%emt 0:00:00]} (22. Bxe5 $11 Qxe5 23. Bxc4 Nxc4 24. Qxc4 Qxf5+ 25. Qc2 Qxc2+ 26. Kxc2) 22... Rxc2 $17 {[%emt 0:00:54]} 23. Bxb6 {[%emt 0:00:00]} Rcxd2 {[%emt 0:03:12]} 24. Nxf7+ {[%emt 0:00:00]} (24. Bxc7+ $142 Kxc7 25. Rxd2 Rxd2 26. Bc4) 24... Kc8 {[%emt 0:01:26]} 25. Bxc7 {[%emt 0:00:00]} Kxc7 {[%emt 0:02:56]} ({Better is} 25... Be4+ $17 26. Ka1 Rxe2 (26... Kxc7 27. Rxd2 Rxd2 28. Bxa6 $17) 27. Rxd7 Kxd7) 26. Rxd2 $15 {[%emt 0:00:00]} Rxd2 {[%emt 0:00:16]} 27. Bc4 {[%emt 0:00:00][%cal Of7g5]} Be4+ {[%emt 0:00:47]} 28. Ka1 {[%emt 0:00:00]} Bxf5 {[%emt 0:00:24]} 29. Nxe5 {[%emt 0:00:24]} g6 {[%emt 0:01:14]} 30. Nxg6 $2 {[%emt 0:04:19][%mdl 8192] [#]} (30. Bf7 $15) 30... Bg7 $1 $19 {[%emt 0:00:33] ( -> ...Nd5+)} 31. Nh4 {[%emt 0:00:43]} Ng4+ {[%emt 0:00:42] Weighted Error Value: White=0.51/Black=0.13 (very precise) .  Loses game:     	White=1     	---        Mistake:       	White=3     	Black=2      Inaccurate:     	White=1     	Black=1      OK:         	White=6     	Black=12     Best:        	White=3     	Black=1      Strong:       	---       	Black=1} (31... Bxh3 $2 {loses.} 32. Rxg7+ Rd7 33. Rxd7+ Nxd7 34. Bxa6 $18) 0-1

[Event "3rd Manaus Open 2024"]
[Site "Manaus"]
[Date "2024.10.14"]
[Round "4.3"]
[White "Di Berardino, Diego Rafael"]
[Black "Matsuura, Everaldo"]
[Result "1/2-1/2"]
[ECO "D43"]
[WhiteElo "2479"]
[BlackElo "2357"]
[Annotator "TA"]
[PlyCount "65"]
[EventDate "2024.10.05"]
[EventType "swiss"]
[EventCountry "BRA"]
[SourceTitle "playchess.com"]
[Source "ChessBase"]
[SourceQuality "1"]
[TimeControl "5400+30"]

{[%evp 19,65,-7,-10,-47,-45,-37,-25,-49,0,0,0,0,0,0,19,6,0,15,10,-36,128,131,102,120,91,6,31,-73,-20,-46,-50,-55,0,0,0,0,0,0,0,0,0,0,0,0,0,0,0,0]} 1. d4 {[%emt 0:00:16]} d5 {[%emt 0:01:20]} 2. c4 {[%emt 0:00:09]} c6 {[%emt 0:00:12]} 3. Nf3 {[%emt 0:00:52]} Nf6 {[%emt 0:01:47]} 4. Nc3 {[%emt 0:00:33]} e6 {[%emt 0:00:19]} 5. Bg5 {[%emt 0:00:45][%cal Bc1g5,Bg5h4,Bh4g3][%mdl 32]} h6 {[%emt 0:01:26]} 6. Bh4 {[%emt 0:00:18]} dxc4 {[%emt 0:00:45]} 7. e4 {[%emt 0:00:11]} g5 {[%emt 0:00:36]} 8. Bg3 {[%emt 0:00:06]} b5 {[%emt 0:00:15]} 9. Be2 {[%emt 0:00:09]} Bb7 {[%emt 0:00:22]} 10. O-O {[%emt 0:00:38]} Nbd7 {[%emt 0:00:37]} 11. Nd2 {[%emt 0:00:49]} h5 {[%emt 0:02:47][%cal Bh6h5,Bh5h4][%mdl 32] ...h4 is the strong threat.} 12. h3 {[%emt 0:00:09]} Qb6 {[%emt 0:02:26]} 13. a4 {[%emt 0:21:41] Black has an edge.} a6 {[%emt 1:24:08]} (13... g4 $1 $15 {should be considered.}) 14. e5 $1 $11 {[%emt 0:03:40]} h4 {[%emt 0:00:00]} 15. Bh2 {[%emt 0:02:15]} Nd5 {[%emt 0:00:00]} 16. Nde4 {[%emt 0:02:35]} Be7 {[%emt 0:00:00]} 17. Bh5 {[%emt 0:20:03]} Nf4 $36 {[%emt 0:00:00][%mdl 2048] Black is pushing.} 18. Bxf4 {[%emt 0:04:11]} gxf4 {[%emt 0:00:00]} 19. Qg4 {[%emt 0:12:05]} (19. Re1 $11 O-O-O 20. Nd6+ (20. Bxf7 $2 Nxe5 $17) 20... Bxd6 21. exd6) 19... Kf8 $2 {[%emt 0:00:00]} (19... Qxd4 $2 20. Bxf7+ Kxf7 21. Qxf4+ Kg7 22. Rad1 Qxe5 23. Qg4+ Kf8 24. Rxd7 $18) (19... c5 $1 $15 {stays ahead.} 20. Nd6+ Bxd6 21. Qxe6+ Kd8 22. Qxf7 Rf8) 20. Rfe1 $1 $16 {[%emt 0:07:31][%cal Oh5f7] Black must now prevent Bxf7!} Rh7 {[%emt 0:00:00] [#]} (20... Qxd4 $2 21. Rad1 Qxe5 22. Bxf7 $18 (22. Rxd7 Rxh5 23. Rxb7 Rf5 $18)) 21. Bxf7 $1 {[%emt 0:12:02][%mdl 512] White is much more active.} Rxf7 {[%emt 0:00:00] [#]} 22. Qxe6 {[%emt 0:00:09]} ({Better is} 22. Ne2 $1 $16 {[%cal Re2f4]} c5 23. Nxf4 Rxf4 (23... cxd4 24. Nxe6+ Ke8 25. Qg8+ Rf8 26. Qg6+ Rf7 27. Nd6+ Bxd6 28. exd6 $18) 24. Qxf4+ Ke8 25. Nd6+ Kd8 26. Nxb7+ Qxb7 27. Red1 cxd4 28. Qxd4) 22... c5 $1 $11 {[%emt 0:00:00]} (22... Qxd4 $2 {is the wrong capture.} 23. Nd6 (23. Rad1 Qxe5 24. Qxd7 Rb8 $17) 23... Bxd6 24. Rad1 Bxe5 25. Rxd4 Bxd4 26. Qd6+ Kg8 27. Qxd4 $18) 23. Nd6 {[%emt 0:04:54]} (23. Qxd7 $14 {keeps the upper hand.} cxd4 24. Nd5) 23... Bxd6 $17 {[%emt 0:00:00]} 24. Qh6+ $1 {[%emt 0:01:46]} Kg8 {[%emt 0:00:00]} 25. exd6 {[%emt 0:00:02]} cxd4 {[%emt 0:00:00]} (25... Raf8 $15 26. d5 Qd8 27. axb5 axb5) 26. Nd5 $11 {[%emt 0:03:53] Dancing on a razor blade. The position is equal.} Bxd5 {[%emt 0:03:15]} 27. Qg5+ {[%emt 0:00:03]} Kh8 {[%emt 0:01:09]} 28. Qxd5 {[%emt 0:00:17]} Raf8 {[%emt 0:00:17] And now ...Qc5 would win.} 29. Re8 $1 {[%emt 0:02:17]} Kg8 {[%emt 0:02:38]} 30. Qg5+ $1 {[%emt 0:00:32]} Rg7 {[%emt 0:00:08]} 31. Qd5+ {[%emt 0:00:06]} Rgf7 $1 {[%emt 0:00:17]} 32. Qg5+ $1 {[%emt 0:00:16]} Rg7 {[%emt 0:00:06]} 33. Qd5+ {[%emt 0:00:09] Weighted Error Value: White=0.11 (very precise) /Black=0.19 (very precise) .  Mistake:       	White=3     	Black=3      OK:         	White=7     	Black=7      Best:        	White=3     	Black=5      Strong:       	White=6     	Black=2      Brilliant:      	White=1     	---} 1/2-1/2

[Event "3rd Manaus Open 2024"]
[Site "Manaus"]
[Date "2024.10.14"]
[Round "4.4"]
[White "Flom, Gabriel"]
[Black "Hoffman, Alejandro"]
[Result "1/2-1/2"]
[ECO "D36"]
[WhiteElo "2460"]
[BlackElo "2356"]
[Annotator "TA"]
[PlyCount "93"]
[EventDate "2024.10.05"]
[EventType "swiss"]
[EventCountry "BRA"]
[SourceTitle "playchess.com"]
[Source "ChessBase"]
[SourceQuality "1"]
[TimeControl "5400+30"]

{[%evp 21,93,43,68,59,60,63,105,82,84,90,100,97,105,91,92,95,103,98,110,88,102,70,107,22,24,26,75,9,19,10,26,13,26,13,26,0,13,0,26,0,0,0,0,0,0,0,0,0,0,0,0,0,0,0,0,0,0,0,0,0,0,0,0,0,0,0,0,0,0,0,0,0,0,0]} 1. d4 {[%emt 0:00:02]} d5 {[%emt 0:00:22]} 2. c4 {[%emt 0:00:08]} e6 {[%emt 0:00:09]} 3. Nc3 {[%emt 0:00:07]} Nf6 {[%emt 0:02:04]} 4. cxd5 {[%emt 0:00:03]} exd5 {[%emt 0:00:06]} 5. Bg5 {[%emt 0:00:04]} Be7 {[%emt 0:06:02]} 6. e3 {[%emt 0:00:05]} O-O {[%emt 0:00:24]} 7. Bd3 {[%emt 0:00:56]} c6 {[%emt 0:00:27]} 8. Qc2 {[%emt 0:01:17]} Nbd7 {[%emt 0:00:08]} 9. Nf3 {[%emt 0:00:21]} Re8 {[%emt 0:00:09]} 10. O-O {[%emt 0:00:06]} g6 {[%emt 0:01:08]} 11. Rab1 {[%emt 0:11:42]} Nh5 {[%emt 0:07:44]} 12. Bxe7 {[%emt 0:00:19] D36: Damegambiet Geweigerd: Ruilvariant: Hoofdvariant (5 Lg5 c6 6 Dc2).} Qxe7 {[%emt 0:00:19]} 13. b4 {[%emt 0:00:02][%cal Bb2b4,Bb4b5][%mdl 32] EV=17.15. Goes to b6 (dbg))} Nb6 {[%emt 0:04:10] Onnauwkeurig} 14. b5 {[%emt 1:22:18] Wit staat beter.} c5 {[%emt 0:04:04] OK} 15. dxc5 {[%emt 0:00:00] Wit is actiever. OK} Qxc5 {[%emt 0:00:08]} 16. Rbc1 $146 {[%emt 0:00:00]} ({Predecessor:} 16. Ne2 Qxc2 17. Bxc2 Bg4 18. Rfd1 Rac8 19. Bb3 Rc5 20. Ned4 Rec8 21. h3 Bxf3 22. gxf3 {½-½ Faybish,N-Duric,S (2190) BEL-ch Class A 1996 (3)}) 16... Bg4 {[%emt 0:04:50]} 17. Nd4 {[%emt 0:00:00] OK} Rac8 {[%emt 0:01:12][%cal Oh5f4] OK} 18. h3 {[%emt 0:00:00] OK} Bd7 {[%emt 0:00:39] OK} 19. Qb3 {[%emt 0:00:00] OK} Qd6 {[%emt 0:01:34][%cal Od7h3]} 20. Rfe1 {[%emt 0:00:00]} Ng7 {[%emt 0:12:23]} 21. a4 {[%emt 0:00:00] Onnauwkeurig} Ne6 {[%emt 0:00:50] Beste (Gemakkelijk)} 22. Nxe6 {[%emt 0:00:00] Fout (0.8)} (22. Nf3 $16) 22... Bxe6 $11 {[%emt 0:00:24]} 23. Qb2 {[%emt 0:00:00] OK} Nc4 {[%emt 0:08:03] OK} {Wit kan overwegen.} 24. Bxc4 {[%emt 0:00:00] Fout (0.7)} (24. Qa1 $16) 24... Rxc4 {[%emt 0:00:08]} 25. Qa1 {[%emt 0:00:00]} Qb4 {[%emt 0:08:13] OK} 26. Ne2 {[%emt 0:00:00] OK} Qxa4 {[%emt 0:01:26]} 27. Rxc4 {[%emt 0:00:00] Beste} Qxc4 {[%emt 0:00:25]} (27... Qxa1 $5 {vereenvoudigt} 28. Rxa1 dxc4 29. Rxa7 Rb8) 28. Nd4 {[%emt 0:00:00][%cal Oe1c1] [#] Rc1! zou dodelijk zijn.} Qc5 {[%emt 0:02:39] OK} 29. Rc1 {[%emt 0:00:00] OK} Qb6 {[%emt 0:00:30] OK} 30. Nxe6 {[%emt 0:00:00] Onnauwkeurig} fxe6 {[%emt 0:01:39][%mdl 4096] Eindspel. KQR-KQR. De stelling is in evenwicht.} 31. Qe5 {[%emt 0:00:00] met als doel voor Rc7. OK} Qd8 {[%emt 0:04:56] OK} 32. Rc7 {[%emt 0:00:00]} Re7 {[%emt 0:00:09] Stopt Qg7+. OK} 33. Rxe7 {[%emt 0:00:00]} Qxe7 {[%emt 0:00:09] KQ-KQ} 34. Qb8+ {[%emt 0:00:00] OK} Kf7 {[%emt 0:03:08] OK} 35. Qxa7 {[%emt 0:00:00] OK} Qd7 {[%emt 0:03:21]} 36. Qc5 {[%emt 0:00:00] OK} e5 {[%emt 0:00:51] OK} 37. Kf1 {[%emt 0:00:00]} Ke6 {[%emt 0:11:05] OK} 38. Qb6+ {[%emt 0:00:00]} Kf5 {[%emt 0:00:21] OK} 39. g4+ {[%emt 0:00:00]} Kg5 {[%emt 0:00:27] OK} 40. Kg2 {[%emt 0:00:00]} h5 {[%emt 0:01:51][%cal Rh5g4] OK} 41. f4+ {[%emt 0:00:00]} exf4 {[%emt 0:12:23] Beste (Gemakkelijk)} 42. exf4+ {[%emt 0:00:00]} Kxf4 {[%emt 0:00:00][%cal Rh5g4]} 43. Qd4+ {[%emt 0:00:00] OK} (43. Qxg6 hxg4 (43... Qxb5 44. Qf5+ Ke3 45. Qf2+ Ke4 46. gxh5 $16) 44. Qh6+ Ke4) 43... Kg5 {[%emt 0:00:00][%cal Rh5g4]} 44. Qe5+ {[%emt 0:00:00] OK} Kh6 {[%emt 0:00:00][%cal Rh5g4] Beste (Gemakkelijk)} 45. g5+ {[%emt 0:00:00]} Kh7 {[%emt 0:00:00][%cal Ob7b6]} 46. b6 {[%emt 0:00:00] OK} Qf7 {[%emt 0:00:00] OK} 47. Qc7 {[%emt 0:00:00] Blunder waarde: Wit=0.12 (erg precies) /Zwart=0.05 (foutloos) .  Fout:        	Wit=2      	---        Onnauwkeurig:    	Wit=2      	Zwart=1      OK:         	Wit=14     	Zwart=16     Beste:        	Wit=1      	Zwart=3} 1/2-1/2

[Event "3rd Manaus Open 2024"]
[Site "Manaus"]
[Date "2024.10.14"]
[Round "4.5"]
[White "Perdomo, Leandro"]
[Black "Rodriguez Vila, Andres"]
[Result "1-0"]
[ECO "A44"]
[WhiteElo "2356"]
[BlackElo "2419"]
[Annotator "RC"]
[PlyCount "66"]
[EventDate "2024.10.05"]
[EventType "swiss"]
[EventCountry "BRA"]
[SourceTitle "playchess.com"]
[Source "ChessBase"]
[SourceQuality "1"]
[TimeControl "5400+30"]

1. d4 {[%emt 0:00:03]} g6 {[%emt 0:00:51]} 2. e4 {[%emt 0:01:51]} Bg7 {[%emt 0:00:15]} 3. c4 {[%emt 0:00:47]} c5 {[%emt 0:00:26]} 4. d5 {[%emt 0:00:12]} d6 {[%emt 0:00:21]} 5. Nf3 {[%emt 0:02:03]} Bg4 {[%emt 0:01:06]} 6. Be2 {[%emt 0:05:35]} e5 {[%emt 0:02:10]} 7. Nc3 {[%emt 0:01:07]} Ne7 {[%emt 0:00:19]} 8. h4 {[%emt 0:05:01]} Nd7 {[%emt 0:02:12]} 9. Be3 {[%emt 0:06:54]} h6 {[%emt 0:00:07]} 10. Nd2 {[%emt 0:07:26]} Bxe2 {[%emt 0:00:11]} 11. Qxe2 {[%emt 0:00:03]} f5 {[%emt 0:02:09]} 12. f3 {[%emt 0:05:26]} f4 {[%emt 0:01:08]} 13. Bf2 O-O {[%emt 0:01:25]} 14. a3 {[%emt 0:04:30]} Kh7 {[%emt 0:03:05]} 15. b4 {[%emt 0:04:20]} b6 {[%emt 0:00:35]} 16. Kd1 {[%emt 0:12:51]} Ng8 {[%emt 0:02:11]} 17. h5 {[%emt 0:04:05]} gxh5 {[%emt 0:02:45]} 18. Rxh5 {[%emt 0:00:26]} Ngf6 {[%emt 0:01:26]} 19. Rh2 {[%emt 0:02:44]} cxb4 {[%emt 0:01:27]} 20. axb4 {[%emt 0:00:12]} a5 {[%emt 0:00:11]} 21. b5 {[%emt 0:08:55]} Rg8 {[%emt 0:02:11]} 22. Nf1 {[%emt 0:03:01]} Rc8 {[%emt 0:02:14]} 23. Na4 {[%emt 0:01:33]} Qc7 {[%emt 0:01:35]} 24. Rc1 {[%emt 0:00:27]} Nc5 {[%emt 0:00:42]} 25. Nxc5 {[%emt 0:01:43]} dxc5 {[%emt 0:00:36]} 26. g4 {[%emt 0:00:49]} fxg3 {[%emt 0:00:24]} 27. Nxg3 {[%emt 0:00:04]} Ne8 {[%emt 0:00:08]} 28. Be3 {[%emt 0:04:49]} Nd6 {[%emt 0:08:04]} 29. Qd2 {[%emt 0:00:55]} Qf7 {[%emt 0:02:13]} 30. Bxh6 {[%emt 0:06:25]} Qxf3+ {[%emt 0:17:50]} 31. Kc2 {[%emt 0:00:03]} Rh8 {[%emt 0:09:56]} 32. Qg5 {[%emt 0:02:57]} Qxg3 {[%emt 0:00:22]} 33. Qxg3 {[%emt 0:09:43]} Rhg8 {[%emt 0:36:25]} 1-0

[Event "3rd Manaus Open 2024"]
[Site "Manaus"]
[Date "2024.10.14"]
[Round "4.6"]
[White "Casalaspro, Mathias Andre"]
[Black "Fier, Alexandr"]
[Result "1/2-1/2"]
[ECO "B31"]
[WhiteElo "2187"]
[BlackElo "2539"]
[Annotator "RC"]
[PlyCount "106"]
[EventDate "2024.10.05"]
[EventType "swiss"]
[EventCountry "BRA"]
[SourceTitle "playchess.com"]
[Source "ChessBase"]
[SourceQuality "1"]
[TimeControl "5400+30"]

1. e4 {[%emt 0:00:13]} c5 {[%emt 0:00:28]} 2. Nf3 {[%emt 0:00:40]} Nc6 {[%emt 0:00:05]} 3. Bb5 {[%emt 0:00:32]} g6 {[%emt 0:00:25]} 4. O-O {[%emt 0:00:32]} Bg7 {[%emt 0:00:03]} 5. Re1 {[%emt 0:00:33]} e5 {[%emt 0:00:29]} 6. Bxc6 {[%emt 0:02:56]} dxc6 {[%emt 0:00:11]} 7. d3 {[%emt 0:00:20]} Qc7 {[%emt 0:04:00]} 8. a4 {[%emt 1:28:44]} a5 {[%emt 0:00:23]} 9. Na3 {[%emt 0:00:00]} Nf6 {[%emt 0:01:43]} 10. Nc4 {[%emt 0:00:00]} Nd7 {[%emt 0:00:06]} 11. b3 {[%emt 0:00:00]} Nf8 {[%emt 0:02:07]} 12. Bb2 {[%emt 0:00:00]} f6 {[%emt 0:00:07]} 13. h3 {[%emt 0:00:00]} Ne6 {[%emt 0:00:12]} 14. c3 {[%emt 0:00:00]} O-O 15. g3 {[%emt 0:00:00]} Bd7 {[%emt 0:18:11]} 16. h4 {[%emt 0:00:00]} Rad8 {[%emt 0:08:12]} 17. Qe2 {[%emt 0:00:00]} Be8 {[%emt 0:00:25]} 18. Qe3 {[%emt 0:00:00]} b6 {[%emt 0:02:52]} 19. d4 {[%emt 0:00:00]} cxd4 {[%emt 0:00:42]} 20. cxd4 {[%emt 0:00:00]} exd4 {[%emt 0:00:03]} 21. Nxd4 {[%emt 0:00:00]} Nxd4 {[%emt 0:00:03]} 22. Bxd4 {[%emt 0:00:00]} c5 {[%emt 0:00:02]} 23. Bc3 {[%emt 0:00:00]} Bc6 {[%emt 0:02:26]} 24. Qf4 {[%emt 0:00:00]} Qxf4 {[%emt 0:04:53]} 25. gxf4 {[%emt 0:00:00]} Rd3 {[%emt 0:03:29]} 26. Re3 {[%emt 0:00:00]} Rfd8 {[%emt 0:00:16]} 27. Rae1 {[%emt 0:00:00]} Rxe3 {[%emt 0:02:09]} 28. Rxe3 {[%emt 0:00:00]} Bh6 {[%emt 0:00:12]} 29. Bxf6 {[%emt 0:00:00]} Rd1+ {[%emt 0:00:31]} 30. Kg2 {[%emt 0:00:00]} Bxf4 {[%emt 0:00:05]} 31. Re2 {[%emt 0:00:00]} Bc7 {[%emt 0:01:05]} 32. f3 {[%emt 0:00:00]} Kf7 {[%emt 0:04:09]} 33. Be5 {[%emt 0:00:00]} Bd8 {[%emt 0:00:03]} 34. Bc3 {[%emt 0:00:00]} Ke8 {[%emt 0:07:17]} 35. Rd2 {[%emt 0:01:27]} Rb1 {[%emt 0:01:13]} 36. Bb2 {[%emt 0:03:26]} Bxh4 {[%emt 0:01:49]} 37. Nxb6 {[%emt 0:03:14]} g5 {[%emt 0:00:10]} 38. Nc4 {[%emt 0:01:15]} g4 {[%emt 0:00:02]} 39. Ne5 {[%emt 0:00:24]} gxf3+ {[%emt 0:00:33]} 40. Kxf3 {[%emt 0:00:21]} Bb7 {[%emt 0:00:33]} 41. Nc4 {[%emt 0:00:26]} Ba8 {[%emt 0:05:24]} 42. Rh2 {[%emt 0:03:12]} Rf1+ {[%emt 0:00:11]} 43. Ke2 {[%emt 0:01:05]} Rf4 {[%emt 0:00:04]} 44. Nd6+ {[%emt 0:00:40]} Kd7 {[%emt 0:00:08]} 45. Be5 {[%emt 0:00:22]} Rg4 {[%emt 0:00:02]} 46. Kf3 {[%emt 0:00:30]} h5 {[%emt 0:00:02]} 47. Bf4 {[%emt 0:00:39]} Bd8 {[%emt 0:03:49]} 48. Nf7 {[%emt 0:01:09]} Bc7 {[%emt 0:03:09]} 49. Bxc7 {[%emt 0:00:50]} Rxe4 {[%emt 0:00:04]} 50. Bf4 {[%emt 0:00:30]} Re7+ {[%emt 0:00:11]} 51. Kg3 {[%emt 0:00:09]} Rxf7 {[%emt 0:00:22]} 52. Rxh5 {[%emt 0:00:08]} Rg7+ {[%emt 0:00:02]} 53. Rg5 {[%emt 0:00:47]} Rxg5+ {[%emt 0:00:06]} 1/2-1/2